fUST/lending_fUST_20240813
["ID","MTS","AMOUNT","RATE_DAILY","PERIOD"]
[334721869,1723507847851,-500.0,0.00014411,2]
[334721870,1723507847861,-885.75,0.00014411,2]
[334721871,1723507847871,-1515.15,0.00014411,2]
[334721872,1723507847880,-500.0,0.00014411,2]
[334721873,1723507847890,-500.0,0.00014411,2]
[334721874,1723507847901,-500.0,0.00014411,2]
[334721875,1723507847913,-500.0,0.00014411,2]
[334721876,1723507847930,-226.806824,0.00014411,2]
[334721877,1723507847940,-500.0,0.00014411,2]
[334721878,1723507847951,-226.806824,0.00014411,2]
[334721879,1723507847961,-500.0,0.00014411,2]
[334721880,1723507847971,-500.0,0.00014411,2]
[334721881,1723507847981,-530.7,0.00014411,2]
[334721882,1723507847990,-500.0,0.00014411,2]
[334721883,1723507848000,-151.0,0.00014411,2]
[334721884,1723507848009,-500.0,0.00014411,2]
[334721885,1723507848019,-151.0,0.00014411,2]
[334721886,1723507848029,-151.0,0.00014412,2]
[334721887,1723507848038,-151.0,0.00014412,2]
[334721888,1723507848048,-638.77,0.00014421,2]
[334721889,1723507848058,-3783.3,0.00014421,2]
[334721890,1723507848068,-501.44447813,0.00014421,2]
[334721891,1723507848077,-500.0,0.00014421,2]
[334721892,1723507848086,-500.0,0.00014421,2]
[334721893,1723507848096,-1184.95,0.00014421,2]
[334721894,1723507848107,-761.704664,0.00014421,2]
[334721895,1723507848118,-157.402392,0.00014421,2]
[334721896,1723507848128,-761.704664,0.00014421,2]
[334721897,1723507848139,-157.402392,0.00014421,2]
[334721898,1723507848150,-500.0,0.00014421,2]
[334721899,1723507848160,-500.0,0.00014421,2]
[334721900,1723507848172,-574.45,0.00014421,2]
[334721901,1723507848181,-500.0,0.00014421,2]
[334721902,1723507848190,-557.25,0.00014421,2]
[334721903,1723507848199,-500.0,0.00014421,2]
[334721904,1723507848209,-1089.69,0.00014421,2]
[334721905,1723507848218,-2080.48,0.00014421,2]
[334721906,1723507848229,-3408.74,0.00014421,2]
[334721907,1723507848239,-1662.81,0.00014421,2]
[334721908,1723507848249,-500.0,0.00014421,2]
[334721909,1723507848258,-500.0,0.00014421,2]
[334721910,1723507848268,-530.14742153,0.00014421,2]
[334721911,1723507848278,-1141.64,0.00014421,2]
[334721912,1723507848288,-500.0,0.00014421,2]
[334721913,1723507848298,-500.0,0.00014422,2]
[334721914,1723507848307,-500.0,0.00014422,2]
[334721915,1723507848316,-752.5,0.00014422,2]
[334721916,1723507848325,-500.0,0.00014422,2]
[334721917,1723507848335,-500.0,0.00014422,2]
[334721918,1723507848344,-500.0,0.00014422,2]
[334721919,1723507848354,-500.0,0.00014422,2]
[334721920,1723507848364,-163.24352531,0.00014422,2]
[334721921,1723507848374,-507.40482495,0.00014422,2]
[334721922,1723507848383,-500.0,0.00014422,2]
[334721923,1723507848393,-500.0,0.00014422,2]
[334721924,1723507848402,-500.0,0.00014422,2]
[334721925,1723507848411,-500.0,0.00014422,2]
[334721926,1723507848423,-500.0,0.00014422,2]
[334721927,1723507848433,-989.75,0.00014422,2]
[334721928,1723507848442,-500.0,0.00014422,2]
[334721929,1723507848452,-500.0,0.00014422,2]
[334721930,1723507848463,-500.0,0.00014422,2]
[334721931,1723507848473,-500.0,0.00014422,2]
[334721932,1723507848482,-505.76043668,0.00014422,2]
[334721933,1723507848492,-500.0,0.00014422,2]
[334721934,1723507848502,-500.0,0.00014422,2]
[334721935,1723507848512,-545.30960326,0.00014422,2]
[334721936,1723507848521,-500.0,0.00014422,2]
[334721937,1723507848531,-500.0,0.00014422,2]
[334721938,1723507848541,-518.52,0.00014422,2]
[334721939,1723507848550,-503.68425534,0.00014422,2]
[334721940,1723507848560,-500.0,0.00014422,2]
[334721941,1723507848569,-151.0,0.00014422,2]
[334721942,1723507848579,-151.0,0.00014422,2]
[334721943,1723507848589,-151.0,0.00014422,2]
[334721944,1723507848598,-151.0,0.00014422,2]
[334721945,1723507848608,-559.40120012,0.00014422,2]
[334721946,1723507848617,-500.0,0.00014422,2]
[334721947,1723507848627,-500.0,0.00014422,2]
[334721948,1723507848637,-500.0,0.00014422,2]
[334721949,1723507848647,-500.0,0.00014422,2]
[334721950,1723507848657,-789.14,0.00014422,2]
[334721951,1723507848666,-500.0,0.00014422,2]
[334721952,1723507848682,-500.0,0.00014422,2]
[334721953,1723507848698,-695.85,0.00014422,2]
[334721954,1723507848708,-500.0,0.00014422,2]
[334721955,1723507848718,-500.0,0.00014422,2]
[334721956,1723507848727,-500.0,0.00014422,2]
[334721957,1723507848738,-500.0,0.00014422,2]
[334721958,1723507848865,-500.0,0.00014422,2]
[334721959,1723507848875,-500.0,0.00014422,2]
[334721960,1723507848885,-500.0,0.00014422,2]
[334721961,1723507848895,-500.0,0.00014422,2]
[334721962,1723507848905,-500.0,0.00014422,2]
[334721963,1723507848914,-500.0,0.00014422,2]
[334721964,1723507848928,-500.0,0.00014422,2]
[334721965,1723507848938,-151.0,0.00014422,2]
[334721966,1723507848948,-151.0,0.00014422,2]
[334721967,1723507848957,-151.43283,0.00014422,2]
[334721968,1723507848967,-500.0,0.00014422,2]
[334721969,1723507848976,-500.0,0.00014422,2]
[334721970,1723507848986,-151.0,0.00014422,2]
[334721971,1723507848996,-500.0,0.00014422,2]
[334721972,1723507849005,-500.0,0.00014422,2]
[334721973,1723507849015,-500.0,0.00014422,2]
[334721974,1723507849024,-500.0,0.00014422,2]
[334721975,1723507849034,-550.02,0.00014422,2]
[334721976,1723507849044,-500.0,0.00014422,2]
[334721977,1723507849053,-384.23911903,0.00014422,2]
[334721978,1723507849063,-500.0,0.00014422,2]
[334721979,1723507849072,-704.31,0.00014422,2]
[334721980,1723507849082,-701.07,0.00014422,2]
[334721981,1723507849092,-500.0,0.00014422,2]
[334721982,1723507849101,-500.0,0.00014422,2]
[334721983,1723507849110,-472.37504085,0.00014422,2]
[334721984,1723507849120,-500.0,0.00014422,2]
[334721985,1723507849130,-618.22,0.00014422,2]
[334721986,1723507849139,-500.0,0.00014422,2]
[334721987,1723507849148,-688.92,0.00014422,2]
[334721988,1723507849158,-525.3092981,0.00014422,2]
[334721989,1723507849167,-500.0,0.00014422,2]
[334721990,1723507849178,-500.0,0.00014422,2]
[334721991,1723507849188,-2423.01,0.00014422,2]
[334721992,1723507849197,-500.0,0.00014422,2]
[334721993,1723507849206,-500.0,0.00014422,2]
[334721994,1723507849218,-535.05,0.00014422,2]
[334721995,1723507849228,-500.0,0.00014422,2]
[334721996,1723507849238,-500.0,0.00014422,2]
[334721997,1723507849247,-500.0,0.00014422,2]
[334721998,1723507849256,-500.0,0.00014422,2]
[334721999,1723507849265,-435.90130151,0.00014422,2]
[334722000,1723507849274,-500.0,0.00014422,2]
[334722001,1723507849283,-1062.16,0.00014422,2]
[334722002,1723507849292,-500.0,0.00014422,2]
[334722003,1723507849301,-500.0,0.00014422,2]
[334722004,1723507849311,-500.0,0.00014422,2]
[334722005,1723507849320,-500.0,0.00014422,2]
[334722006,1723507849330,-500.0,0.00014422,2]
[334722007,1723507849339,-500.0,0.00014422,2]
[334722008,1723507849348,-505.51406527,0.00014422,2]
[334722009,1723507849357,-500.0,0.00014422,2]
[334722010,1723507849367,-519.53,0.00014422,2]
[334722011,1723507849376,-500.0,0.00014422,2]
[334722012,1723507849385,-537.897914,0.00014422,2]
[334722013,1723507849394,-537.897914,0.00014422,2]
[334722014,1723507849403,-537.897914,0.00014422,2]
[334722015,1723507849412,-537.897914,0.00014422,2]
[334722016,1723507849422,-621.77354407,0.00014422,2]
[334722017,1723507849431,-537.45,0.00014422,2]
[334722018,1723507849441,-500.0,0.00014422,2]
[334722019,1723507849451,-500.0,0.00014422,2]
[334722020,1723507849460,-500.0,0.00014422,2]
[334722021,1723507849469,-500.0,0.00014422,2]
[334722022,1723507849478,-620.74,0.00014422,2]
[334722023,1723507849488,-503.70916886,0.00014422,2]
[334722024,1723507849497,-222.315891,0.00014422,2]
[334722025,1723507849506,-222.315891,0.00014422,2]
[334722026,1723507849515,-222.315891,0.00014422,2]
[334722027,1723507849524,-222.315891,0.00014422,2]
[334722028,1723507849533,-718.15,0.00014422,2]
[334722029,1723507849543,-500.0,0.00014422,2]
[334722030,1723507849552,-500.0,0.00014422,2]
[334722031,1723507849561,-500.0,0.00014422,2]
[334722032,1723507849570,-1075.54,0.00014422,2]
[334722033,1723507849580,-500.0,0.00014422,2]
[334722034,1723507849592,-1420.19,0.00014422,2]
[334722035,1723507849602,-1225.82,0.00014422,2]
[334722036,1723507849612,-1051.48,0.00014422,2]
[334722037,1723507849622,-313.882869,0.00014422,2]
[334722038,1723507849632,-313.882869,0.00014422,2]
[334722039,1723507849642,-313.882869,0.00014422,2]
[334722040,1723507849651,-313.882869,0.00014422,2]
[334722041,1723507849661,-379.779369,0.00014422,2]
[334722042,1723507849671,-379.779369,0.00014422,2]
[334722043,1723507849681,-379.779369,0.00014422,2]
[334722044,1723507849692,-379.779369,0.00014422,2]
[334722045,1723507849704,-761.704664,0.00014422,2]
[334722046,1723507849713,-500.0,0.00014422,2]
[334722047,1723507849722,-157.402392,0.00014422,2]
[334722048,1723507849732,-761.704664,0.00014422,2]
[334722049,1723507849742,-500.0,0.00014422,2]
[334722050,1723507849753,-157.402392,0.00014422,2]
[334722051,1723507849763,-6792.66,0.00014422,2]
[334722052,1723507849773,-500.0,0.00014422,2]
[334722053,1723507849783,-500.0,0.00014422,2]
[334722054,1723507849793,-500.0,0.00014422,2]
[334722055,1723507849802,-1340.35,0.00014422,2]
[334722056,1723507849811,-500.0,0.00014422,2]
[334722057,1723507849821,-500.0,0.00014422,2]
[334722058,1723507849830,-619.41,0.00014422,2]
[334722059,1723507849839,-774.02,0.00014422,2]
[334722060,1723507849848,-521.699287,0.00014422,2]
[334722061,1723507849858,-521.699287,0.00014422,2]
[334722062,1723507849867,-521.699287,0.00014422,2]
[334722063,1723507849876,-521.699287,0.00014422,2]
[334722064,1723507849886,-575.86,0.00014422,2]
[334722065,1723507849896,-1466.57,0.00014422,2]
[334722066,1723507849905,-500.0,0.00014422,2]
[334722067,1723507849914,-212.930991,0.00014422,2]
[334722068,1723507849926,-212.930991,0.00014422,2]
[334722069,1723507849936,-668.816618,0.00014422,2]
[334722070,1723507849946,-668.816618,0.00014422,2]
[334722071,1723507849955,-1374.2,0.00014422,2]
[334722072,1723507849964,-212.930991,0.00014422,2]
[334722073,1723507849973,-668.816618,0.00014422,2]
[334722074,1723507849982,-668.816618,0.00014422,2]
[334722075,1723507849993,-212.930991,0.00014422,2]
[334722076,1723507850002,-1099.053527,0.00014422,2]
[334722077,1723507850011,-1099.053527,0.00014422,2]
[334722078,1723507850021,-1099.053527,0.00014422,2]
[334722079,1723507850030,-1099.053527,0.00014422,2]
[334722080,1723507850039,-866.13,0.00014422,2]
[334722081,1723507850047,-292.361461,0.00014422,2]
[334722082,1723507850057,-292.361461,0.00014422,2]
[334722083,1723507850066,-500.0,0.00014422,2]
[334722084,1723507850074,-292.361461,0.00014422,2]
[334722085,1723507850084,-292.361461,0.00014422,2]
[334722086,1723507850093,-500.0,0.00014422,2]
[334722087,1723507850102,-550.0,0.00014422,2]
[334722088,1723507850110,-2072.3,0.00014422,2]
[334722089,1723507850120,-500.0,0.00014422,2]
[334722090,1723507850131,-1212.29,0.00014422,2]
[334722091,1723507850141,-979.49,0.00014422,2]
[334722092,1723507850151,-226.806824,0.00014422,2]
[334722093,1723507850160,-226.806824,0.00014422,2]
[334722094,1723507850170,-226.806824,0.00014422,2]
[334722095,1723507850180,-226.806824,0.00014422,2]
[334722096,1723507850191,-151.0,0.00014422,2]
[334722097,1723507850201,-151.0,0.00014422,2]
[334722098,1723507850211,-151.0,0.00014422,2]
[334722099,1723507850220,-151.0,0.00014422,2]
[334722100,1723507850229,-151.0,0.00014423,2]
[334722101,1723507850238,-151.0,0.00014423,2]
[334722102,1723507850248,-761.704664,0.00014431,2]
[334722103,1723507850257,-157.402392,0.00014431,2]
[334722104,1723507850266,-761.704664,0.00014431,2]
[334722105,1723507850275,-157.402392,0.00014431,2]
[334722106,1723507850285,-512.70293383,0.00014432,2]
[334722107,1723507850294,-151.0,0.00014432,2]
[334722108,1723507850304,-151.0,0.00014432,2]
[334722109,1723507850314,-151.0,0.00014432,2]
[334722110,1723507850323,-503.41868629,0.00014432,2]
[334722111,1723507850334,-500.0,0.00014432,2]
[334722112,1723507850343,-544.52894034,0.00014432,2]
[334722113,1723507850355,-500.0,0.00014432,2]
[334722114,1723507850364,-500.0,0.00014432,2]
[334722115,1723507850373,-500.0,0.00014432,2]
[334722116,1723507850382,-655.48,0.00014432,2]
[334722117,1723507850392,-1000.0,0.00014432,2]
[334722118,1723507850401,-1000.0,0.00014432,2]
[334722119,1723507850412,-1000.0,0.00014432,2]
[334722120,1723507850421,-1000.0,0.00014432,2]
[334722121,1723507850432,-1000.0,0.00014432,2]
[334722122,1723507850442,-1000.0,0.00014432,2]
[334722123,1723507850452,-1000.0,0.00014432,2]
[334722124,1723507850461,-1000.0,0.00014432,2]
[334722125,1723507850470,-1000.0,0.00014432,2]
[334722126,1723507850479,-1000.0,0.00014432,2]
[334722127,1723507850489,-1000.0,0.00014432,2]
[334722128,1723507850498,-1000.0,0.00014432,2]
[334722129,1723507850507,-1000.0,0.00014432,2]
[334722130,1723507850517,-1000.0,0.00014432,2]
[334722131,1723507850528,-1000.0,0.00014432,2]
[334722132,1723507850539,-1000.0,0.00014432,2]
[334722133,1723507850549,-1000.0,0.00014432,2]
[334722134,1723507850560,-1000.0,0.00014432,2]
[334722135,1723507850569,-1000.0,0.00014432,2]
[334722136,1723507850579,-1000.0,0.00014432,2]
[334722137,1723507850589,-1000.0,0.00014432,2]
[334722138,1723507850600,-1000.0,0.00014432,2]
[334722139,1723507850609,-1000.0,0.00014432,2]
[334722140,1723507850619,-1000.0,0.00014432,2]
[334722141,1723507850630,-1000.0,0.00014432,2]
[334722142,1723507850641,-306.06218,0.00014432,2]
[334722143,1723507850652,-537.897914,0.00014432,2]
[334722144,1723507850661,-537.897914,0.00014432,2]
[334722145,1723507850670,-537.897914,0.00014432,2]
[334722146,1723507850680,-537.897905,0.00014432,2]
[334722147,1723507850691,-222.315891,0.00014432,2]
[334722148,1723507850703,-222.315891,0.00014432,2]
[334722149,1723507850712,-222.315891,0.00014432,2]
[334722150,1723507850721,-222.315894,0.00014432,2]
[334722151,1723507850730,-313.882869,0.00014432,2]
[334722152,1723507850741,-313.882869,0.00014432,2]
[334722153,1723507850750,-313.882869,0.00014432,2]
[334722154,1723507850761,-313.882878,0.00014432,2]
[334722155,1723507850773,-379.779369,0.00014432,2]
[334722156,1723507850782,-379.779369,0.00014432,2]
[334722157,1723507850791,-379.779369,0.00014432,2]
[334722158,1723507850800,-379.779364,0.00014432,2]
[334722159,1723507850810,-761.704664,0.00014432,2]
[334722160,1723507850819,-157.402392,0.00014432,2]
[334722161,1723507850829,-761.704661,0.00014432,2]
[334722162,1723507850838,-157.40239,0.00014432,2]
[334722163,1723507850848,-521.699287,0.00014432,2]
[334722164,1723507850859,-521.69928,0.00014432,2]
[334722165,1723507850869,-212.930991,0.00014432,2]
[334722166,1723507850878,-668.816618,0.00014432,2]
[334722167,1723507850887,-668.81662646,0.00014432,2]
[334722168,1723507850897,-212.930998,0.00014432,2]
[334722169,1723507850906,-1099.053527,0.00014432,2]
[334722170,1723507850916,-1099.053525,0.00014432,2]
[334722171,1723507850925,-292.361461,0.00014432,2]
[334722172,1723507850935,-292.361452,0.00014432,2]
[334722173,1723507850945,-226.806824,0.00014432,2]
[334722174,1723507850954,-226.806824,0.00014432,2]
[334722175,1723507850964,-151.0,0.00014432,2]
[334722176,1723507850973,-151.0,0.00014432,2]
[334722177,1723507850981,-200.0,0.00014473,2]
[334722178,1723507850990,-200.0,0.00014473,2]
[334722179,1723507851001,-200.0,0.00014473,2]
[334722180,1723507851009,-200.0,0.00014473,2]
[334722181,1723507851019,-500.0,0.000145,2]
[334722182,1723507851028,-150.01,0.00014533,2]
[334722183,1723507851037,-2993.97680522,0.00014533,2]
[334722184,1723507851047,-1204.92,0.00014575,2]
[334722185,1723507851057,-891.86,0.00014575,2]
[334722186,1723507851066,-766.88,0.00014575,2]
[334722187,1723507851077,-267.9524887,0.000146,2]
[334722188,1723507851086,-267.9524887,0.000146,2]
[334722189,1723507851095,-290.84316921,0.00014649,2]
[334722190,1723507851105,-500.0,0.00014675,2]
[334722191,1723507851115,-2071.47,0.00014675,2]
[334722192,1723507851124,-7738.72,0.00014675,2]
[334722193,1723507851135,-1399.62,0.00014675,2]
[334722194,1723507851145,-891.99,0.00014684,2]
[334722195,1723507851154,-500.0,0.00014684,2]
[334722196,1723507851164,-4531.63,0.00014684,2]
[334722197,1723507851173,-4572.2,0.00014684,2]
[334722198,1723507851182,-1413.72,0.00014684,2]
[334722199,1723507851191,-1535.96,0.00014684,2]
[334722200,1723507851200,-1232.7,0.00014684,2]
[334722201,1723507851210,-500.0,0.00014684,2]
[334722202,1723507851219,-1581.75,0.00014684,2]
[334722203,1723507851229,-500.0,0.00014684,2]
[334722204,1723507851239,-1660.52,0.00014684,2]
[334722205,1723507851248,-500.0,0.00014684,2]
[334722206,1723507851258,-500.0,0.00014684,2]
[334722207,1723507851267,-1077.89,0.00014684,2]
[334722208,1723507851277,-7880.3,0.00014684,2]
[334722209,1723507851288,-500.0,0.00014685,2]
[334722210,1723507851297,-500.0,0.00014685,2]
[334722211,1723507851308,-500.0,0.00014685,2]
[334722212,1723507851319,-500.0,0.00014685,2]
[334722213,1723507851329,-500.0,0.00014685,2]
[334722214,1723507851339,-500.0,0.00014685,2]
[334722215,1723507851349,-674.1,0.00014685,2]
[334722216,1723507851359,-500.0,0.00014685,2]
[334722217,1723507851369,-500.0,0.00014685,2]
[334722218,1723507851378,-500.0,0.00014685,2]
[334722219,1723507851387,-500.0,0.00014685,2]
[334722220,1723507851396,-500.0,0.00014685,2]
[334722221,1723507851405,-577.84,0.00014685,2]
[334722222,1723507851415,-699.4,0.00014685,2]
[334722223,1723507851430,-629.92,0.00014685,2]
[334722224,1723507851444,-500.0,0.00014685,2]
[334722225,1723507851453,-500.0,0.00014685,2]
[334722226,1723507851462,-249.8513056,0.00014685,2]
[334722227,1723507851472,-500.0,0.00014685,2]
[334722228,1723507851485,-500.0,0.00014685,2]
[334722229,1723507851496,-500.0,0.00014685,2]
[334722230,1723507851509,-838.38,0.00014685,2]
[334722231,1723507851520,-500.0,0.00014685,2]
[334722232,1723507851530,-500.0,0.00014685,2]
[334722233,1723507851540,-500.0,0.00014685,2]
[334722234,1723507851549,-500.0,0.00014685,2]
[334722235,1723507851559,-500.0,0.00014685,2]
[334722236,1723507851568,-500.0,0.00014685,2]
[334722237,1723507851578,-527.51,0.00014685,2]
[334722238,1723507851589,-500.0,0.00014685,2]
[334722239,1723507851600,-899.59,0.00014685,2]
[334722240,1723507851610,-500.0,0.00014685,2]
[334722241,1723507851621,-662.72,0.00014685,2]
[334722242,1723507851630,-500.0,0.00014685,2]
[334722243,1723507851641,-500.0,0.00014685,2]
[334722244,1723507851651,-930.41,0.00014685,2]
[334722245,1723507851661,-500.0,0.00014685,2]
[334722246,1723507851780,-1528.05,0.00014685,2]
[334722247,1723507851792,-796.66,0.00014685,2]
[334722248,1723507851802,-1373.35,0.00014685,2]
[334722249,1723507851812,-500.0,0.00014685,2]
[334722250,1723507851821,-187.46442909,0.00014685,2]
[334722251,1723507851831,-1120.59,0.00014685,2]
[334722252,1723507851842,-843.18,0.00014685,2]
[334722253,1723507851853,-1471.67,0.00014685,2]
[334722254,1723507851863,-500.0,0.00014685,2]
[334722255,1723507851872,-500.0,0.00014685,2]
[334722256,1723507851881,-500.0,0.00014685,2]
[334722257,1723507851891,-500.0,0.00014685,2]
[334722258,1723507851900,-912.85,0.00014685,2]
[334722259,1723507851910,-500.0,0.00014685,2]
[334722260,1723507851920,-1170.09,0.00014685,2]
[334722261,1723507851930,-873.34,0.00014685,2]
[334722262,1723507851940,-500.0,0.00014685,2]
[334722263,1723507851951,-639.61,0.00014685,2]
[334722264,1723507851961,-500.0,0.00014685,2]
[334722265,1723507851970,-4137.7,0.00014685,2]
[334722266,1723507851979,-500.0,0.00014685,2]
[334722267,1723507851989,-500.0,0.00014685,2]
[334722268,1723507851997,-500.0,0.00014685,2]
[334722269,1723507852007,-500.0,0.00014685,2]
[334722270,1723507852018,-1462.61,0.00014685,2]
[334722271,1723507852029,-500.0,0.00014685,2]
[334722272,1723507852040,-935.03,0.00014685,2]
[334722273,1723507852050,-500.17502496,0.00014685,2]
[334722274,1723507852060,-500.0,0.00014685,2]
[334722275,1723507852069,-500.0,0.00014685,2]
[334722276,1723507852078,-500.0,0.00014685,2]
[334722277,1723507852086,-633.08,0.00014685,2]
[334722278,1723507852096,-680.88,0.00014685,2]
[334722279,1723507852105,-265.18379765,0.00014685,2]
[334722280,1723507852115,-500.0,0.00014685,2]
[334722281,1723507852125,-768.08,0.00014685,2]
[334722282,1723507852135,-756.12,0.00014685,2]
[334722283,1723507852144,-500.0,0.00014685,2]
[334722284,1723507852154,-500.0,0.00014685,2]
[334722285,1723507852163,-885.75,0.00014685,2]
[334722286,1723507852172,-1515.15,0.00014685,2]
[334722287,1723507852183,-500.0,0.00014685,2]
[334722288,1723507852193,-502.07461869,0.00014685,2]
[334722289,1723507852203,-500.0,0.00014685,2]
[334722290,1723507852214,-500.0,0.00014685,2]
[334722291,1723507852225,-226.806824,0.00014685,2]
[334722292,1723507852235,-500.0,0.00014685,2]
[334722293,1723507852244,-226.806824,0.00014685,2]
[334722294,1723507852255,-500.0,0.00014685,2]
[334722295,1723507852264,-530.7,0.00014685,2]
[334722296,1723507852273,-151.0,0.00014685,2]
[334722297,1723507852283,-500.0,0.00014685,2]
[334722298,1723507852292,-151.0,0.00014685,2]
[334722299,1723507852301,-1092.59843641,0.0001469,2]
[334722300,1723507852310,-408.36824081,0.0001469,2]
[334722301,1723507852320,-154.90676766,0.0001469,2]
[334722302,1723507852330,-159.81409078,0.0001469,2]
[334722303,1723507852341,-151.0,0.00014695,2]
[334722304,1723507852350,-175.306496,0.00014695,2]
[334722305,1723507852359,-638.77,0.00014695,2]
[334722306,1723507852368,-3783.3,0.00014695,2]
[334722307,1723507852378,-500.0,0.00014695,2]
[334722308,1723507852387,-500.0,0.00014695,2]
[334722309,1723507852397,-1184.95,0.00014695,2]
[334722310,1723507852406,-500.0,0.00014695,2]
[334722311,1723507852416,-500.0,0.00014695,2]
[334722312,1723507852427,-574.45,0.00014695,2]
[334722313,1723507852437,-500.0,0.00014695,2]
[334722314,1723507852447,-557.25,0.00014695,2]
[334722315,1723507852457,-500.0,0.00014695,2]
[334722316,1723507852466,-1089.69,0.00014695,2]
[334722317,1723507852475,-2080.48,0.00014695,2]
[334722318,1723507852485,-3408.74,0.00014695,2]
[334722319,1723507852494,-1662.81,0.00014695,2]
[334722320,1723507852504,-500.0,0.00014695,2]
[334722321,1723507852513,-500.0,0.00014695,2]
[334722322,1723507852522,-1141.64,0.00014695,2]
[334722323,1723507852531,-500.0,0.00014695,2]
[334722324,1723507852540,-500.0,0.00014696,2]
[334722325,1723507852550,-500.0,0.00014696,2]
[334722326,1723507852559,-752.5,0.00014696,2]
[334722327,1723507852568,-500.0,0.00014696,2]
[334722328,1723507852577,-500.0,0.00014696,2]
[334722329,1723507852587,-500.0,0.00014696,2]
[334722330,1723507852596,-500.0,0.00014696,2]
[334722331,1723507852606,-564.98108192,0.00014696,2]
[334722332,1723507852615,-500.0,0.00014696,2]
[334722333,1723507852624,-500.0,0.00014696,2]
[334722334,1723507852634,-989.75,0.00014696,2]
[334722335,1723507852643,-500.0,0.00014696,2]
[334722336,1723507852652,-500.0,0.00014696,2]
[334722337,1723507852662,-500.0,0.00014696,2]
[334722338,1723507852671,-500.0,0.00014696,2]
[334722339,1723507852681,-530.34207039,0.00014696,2]
[334722340,1723507852692,-500.0,0.00014696,2]
[334722341,1723507852703,-500.0,0.00014696,2]
[334722342,1723507852712,-518.52,0.00014696,2]
[334722343,1723507852722,-506.81009319,0.00014696,2]
[334722344,1723507852731,-151.0,0.00014696,2]
[334722345,1723507852742,-377.8245219,0.00014696,2]
[334722346,1723507852751,-500.0,0.00014696,2]
[334722347,1723507852761,-500.0,0.00014696,2]
[334722348,1723507852771,-789.14,0.00014696,2]
[334722349,1723507852781,-500.0,0.00014696,2]
[334722350,1723507852790,-500.0,0.00014696,2]
[334722351,1723507852799,-695.85,0.00014696,2]
[334722352,1723507852808,-500.0,0.00014696,2]
[334722353,1723507852818,-500.0,0.00014696,2]
[334722354,1723507852826,-500.0,0.00014696,2]
[334722355,1723507852836,-500.0,0.00014696,2]
[334722356,1723507852845,-500.0,0.00014696,2]
[334722357,1723507852855,-500.0,0.00014696,2]
[334722358,1723507852866,-151.0,0.00014696,2]
[334722359,1723507852875,-151.0,0.00014696,2]
[334722360,1723507852885,-151.0,0.00014696,2]
[334722361,1723507852895,-500.0,0.00014696,2]
[334722362,1723507852904,-500.0,0.00014696,2]
[334722363,1723507852914,-500.0,0.00014696,2]
[334722364,1723507852924,-500.0,0.00014696,2]
[334722365,1723507852934,-500.0,0.00014696,2]
[334722366,1723507852946,-550.02,0.00014696,2]
[334722367,1723507852957,-500.0,0.00014696,2]
[334722368,1723507852967,-500.0,0.00014696,2]